fUSD/lending_fUSD_20260502
["ID","MTS","AMOUNT","RATE_DAILY","PERIOD"]
[421463350,1777722631000,-2841.26,0.00022562,2]
[421463354,1777722631000,-182.2,0.00024658,2]
[421463352,1777722631000,-271.68347136,0.00023045,2]
[421463353,1777722631000,-195.0,0.00024503,2]
[421463347,1777722631000,-136.62877924,0.00022561,2]
[421463349,1777722631000,-334.35983185,0.00022562,2]
[421463345,1777722631000,-141.33921679,0.00022561,2]
[421463340,1777722631000,-555.92102686,0.00020951,2]
[421463344,1777722631000,-158.66078321,0.00022561,2]
[421463346,1777722631000,-163.37122076,0.00022561,2]
[421463355,1777722631000,-172.63,0.00024658,2]
[421463339,1777722631000,-1597.08019209,0.00020951,2]
[421463336,1777722631000,-1200.0,0.0002095,2]
[421463341,1777722631000,-759.87220332,0.00020951,2]
[421463338,1777722631000,-46.2062949,0.00020951,2]
[421463337,1777722631000,-479.9337051,0.00020951,2]
[421463335,1777722631000,-434.87,0.000148,2]
[421463343,1777722631000,-300.0,0.00022561,2]
[421463359,1777722631000,-500.0,0.00028216,3]
[421463342,1777722631000,-382.98657773,0.00020951,2]
[421463361,1777722631000,-166.66,0.00028487,30]
[421463389,1777722631000,-150.0,0.00030384,7]
[421463391,1777722631000,-150.0,0.00030859,7]
[421463386,1777722631000,-500.0,0.00030373,5]
[421463376,1777722631000,-150.0,0.00030279,7]
[421463375,1777722631000,-500.0,0.00029982,2]
[421463378,1777722631000,-157.971354,0.0003032,10]
[421463373,1777722631000,-150.0,0.0002991,7]
[421463384,1777722631000,-150.0,0.00030373,2]
[421463374,1777722631000,-150.0,0.0002991,7]
[421463377,1777722631000,-17562.01,0.00030312,2]
[421463358,1777722631000,-306.0,0.00027167,2]
[421463382,1777722631000,-150.0,0.0003032,2]
[421463372,1777722631000,-150.0,0.0002991,7]
[421463365,1777722631000,-150.0,0.00029534,2]
[421463363,1777722631000,-500.0,0.00029295,4]
[421463370,1777722631000,-500.0,0.00029909,2]
[421463368,1777722631000,-1000.0,0.00029858,2]
[421463356,1777722631000,-661.0,0.00025028,2]
[421463360,1777722631000,-306.0,0.0002824,10]
[421463357,1777722631000,-500.0,0.00027137,2]
[421463371,1777722631000,-150.0,0.0002991,7]
[421463409,1777722632000,-5028.4325216,0.00031765,2]
[421463412,1777722632000,-150.0,0.00031809,7]
[421463413,1777722632000,-1300.0,0.000319,11]
[421463418,1777722632000,-5000.0,0.00032026,2]
[421463420,1777722632000,-220.72,0.00032057,31]
[421463416,1777722632000,-4050.78,0.00032,2]
[421463419,1777722632000,-873.829,0.00032057,31]
[421463410,1777722632000,-836.3347526,0.00031765,2]
[421463422,1777722632000,-196.47,0.00032226,2]
[421463417,1777722632000,-166.67,0.00032008,120]
[421463411,1777722632000,-600.0,0.000318,11]
[421463404,1777722632000,-160.0,0.00031125,2]
[421463414,1777722632000,-268.30105216,0.00031924,30]
[421463408,1777722632000,-166.66,0.00031485,30]
[421463407,1777722632000,-500.0,0.00031452,6]
[421463405,1777722632000,-150.0,0.00031334,7]
[421463402,1777722632000,-512.0,0.00031089,2]
[421463406,1777722632000,-214.19732103,0.00031349,2]
[421463400,1777722632000,-500.0,0.00031089,2]
[421463393,1777722632000,-150.0,0.00031011,2]
[421463423,1777722632000,-150.0,0.00032283,7]
[421463397,1777722632000,-500.0,0.00031089,2]
[421463415,1777722632000,-189.04448565,0.00032,120]
[421463395,1777722632000,-500.0,0.00031089,2]
[421463424,1777722632000,-1239.2301,0.000323,2]
[421463425,1777722632000,-9730.55634569,0.0003235,2]
[421463447,1777722632000,-607.56498033,0.00032385,2]
[421463421,1777722632000,-420.0,0.00032198,30]
[421463446,1777722632000,-6739.75353032,0.00032385,2]
[421463445,1777722632000,-672.09,0.00032385,2]
[421463442,1777722632000,-5371.41112515,0.00032385,2]
[421463443,1777722632000,-391.88,0.00032385,2]
[421463444,1777722632000,-1421.69894956,0.00032385,2]
[421463440,1777722632000,-50061.58498007,0.00032384,7]
[421463437,1777722632000,-500.0,0.00032384,2]
[421463439,1777722632000,-382.24196504,0.00032384,2]
[421463438,1777722632000,-500.0,0.00032384,2]
[421463448,1777722632000,-1261.37215846,0.00032385,2]
[421463435,1777722632000,-243.04066725,0.00032384,2]
[421463427,1777722632000,-629.88992724,0.00032356,21]
[421463426,1777722632000,-500.0,0.00032356,21]
[421463436,1777722632000,-500.0,0.00032384,2]
[421463429,1777722632000,-500.0,0.00032384,2]
[421463431,1777722632000,-179.95169988,0.00032384,2]
[421463428,1777722632000,-2000.0,0.00032379,2]
[421463430,1777722632000,-200.71274567,0.00032384,2]
[421463434,1777722632000,-500.0,0.00032384,2]
[421463433,1777722632000,-277.7457563,0.00032384,2]
[421463432,1777722632000,-500.0,0.00032384,2]
[421463441,1777722632000,-436643.69975678,0.00032385,2]
[421463449,1777722637000,-180.99,0.00024658,2]
[421463451,1777722637000,-2418.07525,0.00030212,2]
[421463453,1777722637000,-229.19641327,0.00032375,10]
[421463452,1777722637000,-7424.90358673,0.00030212,2]
[421463450,1777722637000,-2709.97426327,0.00030212,2]
[421463455,1777722637000,-301.3293289,0.00032385,2]
[421463457,1777722637000,-672.74487952,0.00032385,2]
[421463458,1777722637000,-329.11380431,0.00032385,2]
[421463456,1777722637000,-20820.99609857,0.00032385,2]
[421463460,1777722637000,-829.67010334,0.00032385,2]
[421463459,1777722637000,-43114.21006405,0.00032385,2]
[421463461,1777722637000,-380.52932165,0.00032385,2]
[421463454,1777722637000,-508.40358673,0.00032375,10]
[421463466,1777722638000,-305.153193,0.00032385,2]
[421463464,1777722638000,-1917.77079561,0.00032385,2]
[421463465,1777722638000,-16630.24196015,0.00032385,2]
[421463462,1777722638000,-410.175902,0.00032385,2]
[421463463,1777722638000,-1279.83177326,0.00032385,2]
[421463510,1777722639000,-770.0,0.00032385,30]
[421463509,1777722639000,-514654.28747504,0.00032385,2]
[421463515,1777722639000,-38129.1948204,0.00032485,2]
[421463512,1777722639000,-2955.6185528,0.00032485,2]
[421463513,1777722639000,-961.7684068,0.00032485,2]
[421463511,1777722639000,-42699.2481483,0.00032485,2]
[421463514,1777722639000,-710.9010984,0.00032485,2]
[421463547,1777722640000,-9730.55634568,0.00032664,2]
[421463546,1777722640000,-237.804967,0.00032649,14]
[421463558,1777722640000,-500.0,0.00032876,2]
[421463559,1777722640000,-500.0,0.00032876,2]
[421463549,1777722640000,-9730.55634568,0.00032821,2]
[421463552,1777722640000,-863.4,0.00032876,2]
[421463550,1777722640000,-500.0,0.00032876,2]
[421463548,1777722640000,-150.0,0.00032758,7]
[421463551,1777722640000,-500.0,0.00032876,2]
[421463554,1777722640000,-500.0,0.00032876,2]
[421463556,1777722640000,-500.0,0.00032876,2]
[421463555,1777722640000,-500.0,0.00032876,2]
[421463553,1777722640000,-500.0,0.00032876,2]
[421463567,1777722640000,-588.74,0.00032876,2]
[421463568,1777722640000,-500.0,0.00032876,2]
[421463561,1777722640000,-500.0,0.00032876,2]
[421463560,1777722640000,-500.0,0.00032876,2]
[421463562,1777722640000,-1312.52,0.00032876,2]
[421463565,1777722640000,-500.0,0.00032876,2]
[421463563,1777722640000,-500.0,0.00032876,2]
[421463571,1777722640000,-616.72,0.00032876,2]
[421463564,1777722640000,-500.0,0.00032876,2]
[421463569,1777722640000,-229.78897866,0.00032876,2]
[421463566,1777722640000,-187.04840206,0.00032876,2]
[421463570,1777722640000,-236.25424068,0.00032876,2]
[421463572,1777722640000,-500.0,0.00032876,2]
[421463536,1777722640000,-150.0,0.00032562,2]
[421463545,1777722640000,-274.706901,0.00032649,120]
[421463544,1777722640000,-317.266638,0.00032649,120]
[421463540,1777722640000,-751.77973,0.0003257,32]
[421463516,1777722640000,-557.618447,0.00032485,7]
[421463517,1777722640000,-557.618447,0.00032485,7]
[421463518,1777722640000,-557.618447,0.00032485,7]
[421463520,1777722640000,-195.617819,0.00032485,7]
[421463530,1777722640000,-578.401951,0.00032485,7]
[421463531,1777722640000,-274.706901,0.00032487,14]
[421463532,1777722640000,-270.120849,0.00032487,120]
[421463524,1777722640000,-151.0,0.00032485,7]
[421463523,1777722640000,-195.617819,0.00032485,7]
[421463522,1777722640000,-195.617819,0.00032485,7]
[421463529,1777722640000,-578.401951,0.00032485,7]
[421463525,1777722640000,-151.0,0.00032485,7]
[421463574,1777722640000,-500.0,0.00032876,2]
[421463527,1777722640000,-578.401951,0.00032485,7]
[421463519,1777722640000,-557.618447,0.00032485,7]
[421463526,1777722640000,-151.0,0.00032485,7]
[421463528,1777722640000,-578.401951,0.00032485,7]
[421463534,1777722640000,-500.0,0.00032531,7]
[421463538,1777722640000,-751.77973,0.0003257,32]
[421463537,1777722640000,-751.77973,0.0003257,32]
[421463542,1777722640000,-751.77973,0.0003257,32]
[421463535,1777722640000,-317.266639,0.00032541,14]
[421463533,1777722640000,-9730.55634568,0.00032507,2]
[421463543,1777722640000,-237.804967,0.00032649,14]
[421463539,1777722640000,-751.77973,0.0003257,32]
[421463541,1777722640000,-751.77974,0.0003257,32]
[421463521,1777722640000,-195.617819,0.00032485,7]
[421463575,1777722640000,-152.56284539,0.00032876,2]
[421463557,1777722640000,-500.0,0.00032876,2]
[421463579,1777722640000,-3819.44,0.00032876,2]
[421463607,1777722640000,-500.0,0.00032876,2]
[421463609,1777722640000,-185.4698787,0.00032876,2]
[421463612,1777722640000,-196.96245649,0.00032876,2]
[421463611,1777722640000,-500.0,0.00032876,2]
[421463621,1777722640000,-500.0,0.00032876,2]
[421463610,1777722640000,-500.0,0.00032876,2]
[421463620,1777722640000,-500.0,0.00032876,2]
[421463613,1777722640000,-924.81,0.00032876,2]
[421463614,1777722640000,-202.76579793,0.00032876,2]
[421463615,1777722640000,-500.0,0.00032876,2]
[421463619,1777722640000,-500.0,0.00032876,2]
[421463617,1777722640000,-266.1036493,0.00032876,2]
[421463618,1777722640000,-500.0,0.00032876,2]
[421463616,1777722640000,-500.0,0.00032876,2]
[421463623,1777722640000,-13822.63,0.00032876,2]
[421463622,1777722640000,-500.0,0.00032876,2]
[421463626,1777722640000,-500.0,0.00032876,2]
[421463624,1777722640000,-678.67,0.00032876,2]
[421463625,1777722640000,-677.72,0.00032876,2]
[421463628,1777722640000,-500.0,0.00032876,2]
[421463630,1777722640000,-873.14,0.00032876,2]
[421463629,1777722640000,-637.76336768,0.00032876,2]
[421463634,1777722640000,-500.0,0.00032876,2]
[421463631,1777722640000,-500.0,0.00032876,2]
[421463632,1777722640000,-268.24036276,0.00032876,2]
[421463582,1777722640000,-233.7177673,0.00032876,2]
[421463627,1777722640000,-500.0,0.00032876,2]
[421463605,1777722640000,-500.0,0.00032876,2]
[421463599,1777722640000,-572.03,0.00032876,2]
[421463633,1777722640000,-686.26,0.00032876,2]
[421463600,1777722640000,-500.0,0.00032876,2]
[421463606,1777722640000,-704.33,0.00032876,2]
[421463576,1777722640000,-559.24421524,0.00032876,2]
[421463583,1777722640000,-500.0,0.00032876,2]
[421463584,1777722640000,-588.88200148,0.00032876,2]
[421463578,1777722640000,-775.88,0.00032876,2]
[421463573,1777722640000,-500.0,0.00032876,2]
[421463581,1777722640000,-500.0,0.00032876,2]
[421463580,1777722640000,-334.32131319,0.00032876,2]
[421463595,1777722640000,-511.31,0.00032876,2]
[421463588,1777722640000,-215.44688168,0.00032876,2]
[421463586,1777722640000,-500.0,0.00032876,2]
[421463593,1777722640000,-218.84782493,0.00032876,2]
[421463589,1777722640000,-553.19143912,0.00032876,2]
[421463587,1777722640000,-500.0,0.00032876,2]
[421463577,1777722640000,-500.0,0.00032876,2]
[421463591,1777722640000,-209.97116262,0.00032876,2]
[421463585,1777722640000,-500.0,0.00032876,2]
[421463604,1777722640000,-500.0,0.00032876,2]
[421463601,1777722640000,-2242.87,0.00032876,2]
[421463603,1777722640000,-695.13,0.00032876,2]
[421463608,1777722640000,-500.0,0.00032876,2]
[421463602,1777722640000,-224.69815514,0.00032876,2]
[421463598,1777722640000,-500.0,0.00032876,2]
[421463594,1777722640000,-238.15158668,0.00032876,2]
[421463590,1777722640000,-857.99,0.00032876,2]
[421463592,1777722640000,-178.60793545,0.00032876,2]
[421463596,1777722640000,-209.67597774,0.00032876,2]
[421463597,1777722640000,-500.0,0.00032876,2]
[421463669,1777722641000,-500.0,0.00032876,2]
[421463675,1777722641000,-500.0,0.00032876,2]
[421463674,1777722641000,-500.0,0.00032876,2]
[421463671,1777722641000,-500.0,0.00032876,2]
[421463673,1777722641000,-500.0,0.00032876,2]
[421463670,1777722641000,-500.0,0.00032876,2]
[421463668,1777722641000,-629.99128713,0.00032876,2]
[421463664,1777722641000,-500.0,0.00032876,2]
[421463676,1777722641000,-500.0,0.00032876,2]
[421463665,1777722641000,-500.0,0.00032876,2]
[421463672,1777722641000,-500.0,0.00032876,2]
[421463682,1777722641000,-500.0,0.00032876,2]
[421463680,1777722641000,-187.77086659,0.00032876,2]
[421463691,1777722641000,-500.0,0.00032876,2]
[421463678,1777722641000,-500.0,0.00032876,2]
[421463681,1777722641000,-3688.9,0.00032876,2]
[421463677,1777722641000,-500.0,0.00032876,2]
[421463679,1777722641000,-615.52,0.00032876,2]
[421463684,1777722641000,-291.75326838,0.00032876,2]
[421463685,1777722641000,-500.0,0.00032876,2]
[421463696,1777722641000,-500.0,0.00032876,2]
[421463688,1777722641000,-562.59704653,0.00032876,2]
[421463686,1777722641000,-500.0,0.00032876,2]
[421463690,1777722641000,-500.0,0.00032876,2]
[421463663,1777722641000,-500.0,0.00032876,2]
[421463683,1777722641000,-274.07781285,0.00032876,2]
[421463666,1777722641000,-500.0,0.00032876,2]
[421463641,1777722641000,-389.66075935,0.00032876,2]
[421463662,1777722641000,-500.0,0.00032876,2]
[421463687,1777722641000,-500.0,0.00032876,2]
[421463636,1777722641000,-500.0,0.00032876,2]
[421463635,1777722641000,-245.64565608,0.00032876,2]
[421463637,1777722641000,-500.0,0.00032876,2]
[421463638,1777722641000,-823.72,0.00032876,2]
[421463640,1777722641000,-284.21999021,0.00032876,2]
[421463650,1777722641000,-500.0,0.00032876,2]
[421463647,1777722641000,-500.0,0.00032876,2]
[421463645,1777722641000,-903.55,0.00032876,2]
[421463643,1777722641000,-500.0,0.00032876,2]
[421463639,1777722641000,-500.0,0.00032876,2]
[421463649,1777722641000,-500.0,0.00032876,2]
[421463642,1777722641000,-500.0,0.00032876,2]
[421463644,1777722641000,-657.26,0.00032876,2]
[421463646,1777722641000,-232.5076584,0.00032876,2]
[421463648,1777722641000,-500.0,0.00032876,2]
[421463652,1777722641000,-500.0,0.00032876,2]
[421463651,1777722641000,-500.0,0.00032876,2]
[421463660,1777722641000,-600.33000101,0.00032876,2]
[421463657,1777722641000,-500.0,0.00032876,2]
[421463656,1777722641000,-500.0,0.00032876,2]
[421463655,1777722641000,-221.73478207,0.00032876,2]
[421463659,1777722641000,-511.74747074,0.00032876,2]
[421463653,1777722641000,-500.0,0.00032876,2]
[421463658,1777722641000,-2398.3,0.00032876,2]
[421463654,1777722641000,-372.34288183,0.00032876,2]
[421463661,1777722641000,-623.80910224,0.00032876,2]
[421463667,1777722641000,-500.0,0.00032876,2]
[421463689,1777722641000,-628.61120431,0.00032876,2]
[421463707,1777722641000,-417.31962176,0.00032876,2]
[421463693,1777722641000,-538.66279496,0.00032876,2]
[421463724,1777722641000,-277.72961047,0.00032876,2]
[421463730,1777722641000,-188.01599988,0.00032876,2]
[421463729,1777722641000,-500.0,0.00032876,2]
[421463727,1777722641000,-500.0,0.00032876,2]
[421463722,1777722641000,-500.0,0.00032876,2]
[421463726,1777722641000,-500.0,0.00032876,2]
[421463733,1777722641000,-400.35982985,0.00032876,2]
[421463735,1777722641000,-578.4,0.00032876,2]
[421463743,1777722641000,-671.26,0.00032876,2]
[421463744,1777722641000,-628.47496959,0.00032876,2]
[421463737,1777722641000,-500.0,0.00032876,2]
[421463736,1777722641000,-500.0,0.00032876,2]
[421463728,1777722641000,-871.65,0.00032876,2]
[421463734,1777722641000,-500.0,0.00032876,2]
[421463738,1777722641000,-227.0888395,0.00032876,2]
[421463740,1777722641000,-528.82744839,0.00032876,2]
[421463742,1777722641000,-500.0,0.00032876,2]
[421463746,1777722641000,-500.0,0.00032876,2]
[421463745,1777722641000,-351.81031706,0.00032876,2]
[421463747,1777722641000,-500.0,0.00032876,2]
[421463751,1777722641000,-548.93252658,0.00032876,2]
[421463752,1777722641000,-589.14291543,0.00032876,2]
[421463748,1777722641000,-578.401951,0.00032876,7]
[421463750,1777722641000,-500.0,0.00032876,2]
[421463749,1777722641000,-500.0,0.00032876,2]
[421463692,1777722641000,-250.35610027,0.00032876,2]
[421463741,1777722641000,-373.03765243,0.00032876,2]
[421463725,1777722641000,-500.0,0.00032876,2]
[421463739,1777722641000,-500.0,0.00032876,2]
[421463723,1777722641000,-500.0,0.00032876,2]
[421463732,1777722641000,-2734.26,0.00032876,2]
[421463695,1777722641000,-500.0,0.00032876,2]
[421463698,1777722641000,-500.0,0.00032876,2]
[421463697,1777722641000,-500.0,0.00032876,2]
[421463708,1777722641000,-183.24930744,0.00032876,2]
[421463700,1777722641000,-151.0,0.00032876,7]
[421463699,1777722641000,-500.0,0.00032876,2]
[421463703,1777722641000,-1634.36,0.00032876,2]
[421463706,1777722641000,-273.33490071,0.00032876,2]
[421463702,1777722641000,-500.0,0.00032876,2]
[421463704,1777722641000,-500.0,0.00032876,2]
[421463705,1777722641000,-168.103889,0.00032876,7]
[421463710,1777722641000,-534.94108206,0.00032876,2]
[421463701,1777722641000,-500.0,0.00032876,2]
[421463694,1777722641000,-500.0,0.00032876,2]
[421463720,1777722641000,-170.517712,0.00032876,7]
[421463719,1777722641000,-500.0,0.00032876,2]
[421463731,1777722641000,-601.63736129,0.00032876,2]
[421463721,1777722641000,-500.0,0.00032876,2]
[421463711,1777722641000,-500.0,0.00032876,2]
[421463714,1777722641000,-500.0,0.00032876,2]
[421463716,1777722641000,-501.14093538,0.00032876,2]
[421463717,1777722641000,-500.0,0.00032876,2]
[421463718,1777722641000,-500.0,0.00032876,2]
[421463712,1777722641000,-246.48057793,0.00032876,2]
[421463715,1777722641000,-944.77,0.00032876,2]
[421463713,1777722641000,-500.0,0.00032876,2]
[421463709,1777722641000,-305.31229778,0.00032876,2]
[421463768,1777722642000,-515.59032937,0.00032876,2]
[421463774,1777722642000,-515.59032937,0.00032876,2]
[421463763,1777722642000,-522.36,0.00032876,2]
[421463773,1777722642000,-515.59032937,0.00032876,2]
[421463772,1777722642000,-515.59032937,0.00032876,2]
[421463783,1777722642000,-500.0,0.00032876,2]
[421463785,1777722642000,-511.48631069,0.00032876,2]
[421463776,1777722642000,-500.0,0.00032876,2]
[421463778,1777722642000,-260.74246332,0.00032876,2]
[421463784,1777722642000,-500.0,0.00032876,2]
[421463782,1777722642000,-241.61015298,0.00032876,2]
[421463781,1777722642000,-512.03521752,0.00032876,2]
[421463762,1777722642000,-500.0,0.00032876,2]
[421463775,1777722642000,-515.59032937,0.00032876,2]
[421463777,1777722642000,-500.0,0.00032876,2]
[421463757,1777722642000,-500.0,0.00032876,2]
[421463764,1777722642000,-578.401951,0.00032876,7]
[421463780,1777722642000,-500.0,0.00032876,2]
[421463756,1777722642000,-500.47,0.00032876,2]
[421463758,1777722642000,-500.0,0.00032876,2]
[421463753,1777722642000,-537.94475144,0.00032876,2]
[421463755,1777722642000,-235.56347052,0.00032876,2]
[421463754,1777722642000,-578.401951,0.00032876,7]
[421463769,1777722642000,-515.59032937,0.00032876,2]
[421463759,1777722642000,-578.401951,0.00032876,7]
[421463761,1777722642000,-500.0,0.00032876,2]
[421463765,1777722642000,-500.0,0.00032876,2]
[421463767,1777722642000,-500.0,0.00032876,2]
[421463771,1777722642000,-500.0,0.00032876,2]
[421463766,1777722642000,-251.32985938,0.00032876,2]
[421463760,1777722642000,-3453.62,0.00032876,2]
[421463770,1777722642000,-515.59032937,0.00032876,2]
[421463779,1777722642000,-253.98359374,0.00032876,2]
[421463800,1777722642000,-500.0,0.00032876,2]
[421463788,1777722642000,-5608.91,0.00032876,2]
[421463820,1777722642000,-12163.66000226,0.000329,2]
[421463821,1777722642000,-922.18333418,0.000329,2]
[421463818,1777722642000,-1820344.66235137,0.000329,2]
[421463787,1777722642000,-763.7,0.00032876,2]
[421463813,1777722642000,-500.0,0.00032876,2]
[421463816,1777722642000,-500.0,0.00032876,2]
[421463812,1777722642000,-500.0,0.00032876,2]
[421463817,1777722642000,-500.0,0.00032876,2]
[421463805,1777722642000,-767.81,0.00032876,2]
[421463807,1777722642000,-691.66,0.00032876,2]
[421463808,1777722642000,-500.0,0.00032876,2]
[421463806,1777722642000,-500.0,0.00032876,2]
[421463799,1777722642000,-500.0,0.00032876,2]
[421463810,1777722642000,-500.0,0.00032876,2]
[421463811,1777722642000,-846.34,0.00032876,2]
[421463815,1777722642000,-500.0,0.00032876,2]
[421463802,1777722642000,-500.0,0.00032876,2]
[421463801,1777722642000,-500.0,0.00032876,2]
[421463798,1777722642000,-853.4,0.00032876,2]
[421463786,1777722642000,-832.07,0.00032876,2]
[421463797,1777722642000,-500.0,0.00032876,2]
[421463790,1777722642000,-778.54,0.00032876,2]
[421463794,1777722642000,-500.0,0.00032876,2]
[421463791,1777722642000,-674.46,0.00032876,2]
[421463789,1777722642000,-589.13,0.00032876,2]
[421463792,1777722642000,-500.0,0.00032876,2]
[421463793,1777722642000,-3348.22,0.00032876,2]
[421463796,1777722642000,-500.0,0.00032876,2]
[421463804,1777722642000,-154.67340396,0.00032876,2]
[421463809,1777722642000,-500.0,0.00032876,2]
[421463803,1777722642000,-604.12,0.00032876,2]
[421463795,1777722642000,-643.52352489,0.00032876,2]
[421463834,1777722645000,-677.0,0.00032876,30]
[421463830,1777722645000,-748.37332842,0.00032875,2]
[421463831,1777722645000,-748.37332842,0.00032875,2]
[421463829,1777722645000,-200.0,0.00031875,2]
[421463833,1777722645000,-748.37332842,0.00032875,2]
[421463832,1777722645000,-748.37332842,0.00032875,2]
[421463836,1777722645000,-500.0,0.00032876,2]
[421463840,1777722645000,-341.09082663,0.00032876,2]
[421463838,1777722645000,-547.31,0.00032876,2]
[421463835,1777722645000,-500.0,0.00032876,2]
[421463839,1777722645000,-158.90917337,0.00032876,2]
[421463842,1777722645000,-53009.09445724,0.000329,2]
[421463843,1777722645000,-4343.6612253,0.000329,2]
[421463841,1777722645000,-707630.06115417,0.000329,2]
[421463844,1777722645000,-1473.170354,0.000329,2]
[421463837,1777722645000,-500.0,0.00032876,2]
[421463851,1777722920000,328.74,0.00029532,120]
[421463852,1777723247000,419.92,0.00030137,120]
[421463853,1777723259000,839.85,0.00030137,120]
[421463855,1777723280000,419.92,0.00030137,120]
[421463857,1777723301000,419.93,0.00030137,120]
[421463863,1777723551000,-150.0,0.000126,2]
[421463865,1777723551000,-150.0,0.000126,2]
[421463864,1777723551000,-150.0,0.000126,2]
[421463862,1777723551000,-150.0,0.000126,2]
[421463868,1777723551000,-150.0,0.000127,2]
[421463869,1777723551000,-150.0,0.000128,2]
[421463870,1777723551000,-11.7962442,0.000129,2]
[421463867,1777723551000,-150.0,0.000126,2]
[421463866,1777723551000,-150.0,0.000126,2]
[421463872,1777723637000,-150.0,0.00013,2]
[421463873,1777723637000,-150.0,0.000131,2]
[421463874,1777723637000,-150.0,0.000132,2]
[421463875,1777723637000,-150.0,0.000133,2]
[421463877,1777723637000,-150.0,0.000134,2]
[421463871,1777723637000,-138.2037558,0.000129,2]
[421463878,1777723637000,-150.0,0.000135,2]
[421463879,1777723637000,-500.0,0.000135,4]
[421463882,1777723637000,-150.0,0.000137,2]
[421463880,1777723637000,-150.0,0.000136,2]
[421463881,1777723637000,-1100.0,0.000136,4]
[421463883,1777723637000,-227.04611123,0.000137,5]
[421463876,1777723637000,-150.0,0.000133,2]
[421463885,1777723825000,150.72,0.0002842,120]
[421463884,1777723825000,150.72,0.00025578,120]
[421463895,1777723832000,-233.98723583,0.000139,2]
[421463899,1777723832000,-503.28411574,0.000139,2]
[421463897,1777723832000,-2900.0,0.000139,5]
[421463896,1777723832000,-371.07449591,0.000139,2]
[421463894,1777723832000,-300.0,0.00013899,2]
[421463892,1777723832000,-2300.0,0.000138,5]
[421463887,1777723832000,-557.41631698,0.000137,5]
[421463890,1777723832000,-200.352,0.0001372,2]
[421463891,1777723832000,-150.0,0.000138,2]
[421463889,1777723832000,-1193.594,0.0001372,2]
[421463888,1777723832000,-915.53757179,0.000137,5]
[421463898,1777723832000,-6142.76739522,0.000139,2]
[421463893,1777723832000,-250.0,0.0001386,2]
[421463900,1777723832000,-582.35372534,0.000139,2]
[421463912,1777723832000,-500.0,0.00013999,2]
[421463902,1777723832000,-9019.68781319,0.000139,2]
[421463917,1777723832000,-517.02481716,0.00013999,2]
[421463918,1777723832000,-118519.75860425,0.00014,2]
[421463911,1777723832000,-500.0,0.00013999,2]
[421463909,1777723832000,-500.0,0.00013999,2]
[421463901,1777723832000,-488.8508368,0.000139,2]
[421463914,1777723832000,-562.41286769,0.00013999,2]
[421463915,1777723832000,-188.89424848,0.00013999,2]
[421463916,1777723832000,-500.0,0.00013999,2]
[421463908,1777723832000,-500.0,0.00013999,2]
[421463905,1777723832000,-14294.93791303,0.0001399,2]
[421463906,1777723832000,-227.72717805,0.00013999,2]
[421463904,1777723832000,-160.0,0.00013986,2]
[421463903,1777723832000,-150.0,0.000139,2]
[421463913,1777723832000,-562.61360793,0.00013999,2]
[421463923,1777723837000,-381.89,0.00014,2]
[421463928,1777723838000,-829.67010334,0.00014,2]
[421463924,1777723838000,-2749.91851468,0.00014,2]
[421463925,1777723838000,-1682.20121288,0.00014,2]